[Event "*** Titled Tuesday Blitz"]
[Site "Chess.com"]
[Date "2019.05.07"]
[Round "7"]
[White "JeremDev"]
[Black "MFguimaraes"]
[Result "0-1"]
[WhiteElo "2469"]
[BlackElo "2324"]
[TimeControl "180+2"]
[EndTime "14:40:32 PDT"]
[Termination "MFguimaraes won by resignation"]

1. e4 {[%clk 0:03:01.9]} 1... e5 {[%clk 0:03:00.8]} 2. Nf3 {[%clk 0:03:00.9]}
2... Nc6 {[%clk 0:03:01.2]} 3. Bc4 {[%clk 0:03:01.4]} 3... Nf6 {[%clk 0:03:02]}
4. d3 {[%clk 0:02:58.2]} 4... h6 {[%clk 0:03:01.6]} 5. O-O {[%clk 0:02:54]} 5...
d6 {[%clk 0:03:00]} 6. Re1 {[%clk 0:02:54.1]} 6... g5 {[%clk 0:03:00.7]} 7. d4
{[%clk 0:02:49.3]} 7... Bg4 {[%clk 0:02:57.4]} 8. c3 {[%clk 0:02:41.7]} 8... Bg7
{[%clk 0:02:53.3]} 9. d5 {[%clk 0:02:35.4]} 9... Ne7 {[%clk 0:02:52.9]} 10. Nbd2
{[%clk 0:02:34.9]} 10... Ng6 {[%clk 0:02:53.3]} 11. Nf1 {[%clk 0:02:35.5]} 11...
O-O {[%clk 0:02:53.1]} 12. h3 {[%clk 0:02:34.1]} 12... Bd7 {[%clk 0:02:54.1]}
13. Ng3 {[%clk 0:02:34.5]} 13... g4 {[%clk 0:02:53.9]} 14. hxg4 {[%clk
0:02:34.9]} 14... Bxg4 {[%clk 0:02:55]} 15. Be2 {[%clk 0:02:36.1]} 15... Nf4
{[%clk 0:02:54.1]} 16. Nd2 {[%clk 0:01:43.2]} 16... Bxe2 {[%clk 0:02:36.4]} 17.
Nxe2 {[%clk 0:01:42.2]} 17... N6h5 {[%clk 0:02:37.5]} 18. Nf1 {[%clk 0:01:31.1]}
18... f5 {[%clk 0:02:34.2]} 19. exf5 {[%clk 0:01:29.1]} 19... Rxf5 {[%clk
0:02:32.1]} 20. Neg3 {[%clk 0:01:28.2]} 20... Nxg3 {[%clk 0:01:57.9]} 21. Nxg3
{[%clk 0:01:28.6]} 21... Rf8 {[%clk 0:01:57.6]} 22. Qg4 {[%clk 0:01:23.1]} 22...
Kh7 {[%clk 0:01:48.8]} 23. Nh5 {[%clk 0:00:59.6]} 23... Qg5 {[%clk 0:01:39.4]}
24. Qxg5 {[%clk 0:00:56.8]} 24... hxg5 {[%clk 0:01:41.3]} 25. Ng3 {[%clk
0:00:50.7]} 25... Nxd5 {[%clk 0:01:40.1]} 26. Bxg5 {[%clk 0:00:49.7]} 26... Bh6
{[%clk 0:01:34.8]} 27. Bxh6 {[%clk 0:00:49.5]} 27... Kxh6 {[%clk 0:01:36.7]} 28.
Rad1 {[%clk 0:00:49.4]} 28... Nf4 {[%clk 0:01:36]} 29. c4 {[%clk 0:00:47.3]}
29... b6 {[%clk 0:01:35.5]} 30. b4 {[%clk 0:00:47.7]} 30... Kg6 {[%clk
0:01:30.7]} 31. c5 {[%clk 0:00:48.4]} 31... Rad8 {[%clk 0:01:28.2]} 32. f3
{[%clk 0:00:41.4]} 32... Rh8 {[%clk 0:01:24.5]} 33. cxd6 {[%clk 0:00:30.6]}
33... cxd6 {[%clk 0:01:25.3]} 34. Ne4 {[%clk 0:00:28.6]} 34... d5 {[%clk
0:01:25.1]} 35. Nc3 {[%clk 0:00:29.6]} 35... Kf5 {[%clk 0:01:24.3]} 36. g3
{[%clk 0:00:28.1]} 36... Rdg8 {[%clk 0:01:20.2]} 37. g4+ {[%clk 0:00:27.3]}
37... Ke6 {[%clk 0:01:19.4]} 38. Ne2 {[%clk 0:00:21.7]} 38... Nh3+ {[%clk
0:01:18.7]} 39. Kg2 {[%clk 0:00:22.2]} 39... Kd6 {[%clk 0:01:06.4]} 40. Ng3
{[%clk 0:00:21.8]} 40... Nf4+ {[%clk 0:01:06.6]} 41. Kg1 {[%clk 0:00:21.6]}
41... Rh3 {[%clk 0:01:05]} 42. Nf5+ {[%clk 0:00:19.9]} 42... Kc7 {[%clk
0:01:04.4]} 43. Rxe5 {[%clk 0:00:19.6]} 43... Rxf3 {[%clk 0:01:04.3]} 44. Ne7
{[%clk 0:00:15.3]} 44... Rxg4+ {[%clk 0:01:03.9]} 0-1

[Event "*** Titled Tuesday Blitz"]
[Site "Chess.com"]
[Date "2019.05.07"]
[Round "7"]
[White "Jahonas"]
[Black "chessking2151"]
[Result "0-1"]
[WhiteElo "2384"]
[BlackElo "2602"]
[TimeControl "180+2"]
[EndTime "14:40:33 PDT"]
[Termination "chessking2151 won by resignation"]

1. d4 {[%clk 0:03:01.9]} 1... Nf6 {[%clk 0:02:58.4]} 2. c4 {[%clk 0:03:02.7]}
2... e6 {[%clk 0:02:48.6]} 3. Nf3 {[%clk 0:03:03.4]} 3... b6 {[%clk 0:02:49.9]}
4. g3 {[%clk 0:03:04.4]} 4... Ba6 {[%clk 0:02:51.3]} 5. b3 {[%clk 0:03:05.3]}
5... Bb4+ {[%clk 0:02:51.9]} 6. Bd2 {[%clk 0:03:06.3]} 6... Be7 {[%clk
0:02:53.1]} 7. Bg2 {[%clk 0:03:06.6]} 7... Bb7 {[%clk 0:02:51.6]} 8. O-O {[%clk
0:03:07.4]} 8... O-O {[%clk 0:02:52.8]} 9. a4 {[%clk 0:03:06.5]} 9... a5 {[%clk
0:02:40.6]} 10. Nc3 {[%clk 0:03:07.2]} 10... d5 {[%clk 0:02:41.5]} 11. cxd5
{[%clk 0:03:03.7]} 11... exd5 {[%clk 0:02:40.1]} 12. Ne5 {[%clk 0:03:03.5]}
12... Na6 {[%clk 0:02:37.7]} 13. Rc1 {[%clk 0:02:47]} 13... Re8 {[%clk
0:02:31.8]} 14. Nb5 {[%clk 0:02:47.3]} 14... c5 {[%clk 0:02:10.1]} 15. Bg5
{[%clk 0:02:36.6]} 15... h6 {[%clk 0:02:08.8]} 16. Bxf6 {[%clk 0:02:33.8]} 16...
Bxf6 {[%clk 0:02:09.7]} 17. Nd3 {[%clk 0:02:19.2]} 17... Qe7 {[%clk 0:02:05.2]}
18. e3 {[%clk 0:02:13.6]} 18... Rad8 {[%clk 0:02:04.8]} 19. Nf4 {[%clk
0:02:10.5]} 19... Nb4 {[%clk 0:02:02.7]} 20. dxc5 {[%clk 0:01:57.8]} 20... bxc5
{[%clk 0:02:02]} 21. Qf3 {[%clk 0:01:49.1]} 21... Bb2 {[%clk 0:01:50.2]} 22.
Rcd1 {[%clk 0:01:46]} 22... Ba8 {[%clk 0:01:46]} 23. Qg4 {[%clk 0:01:30.1]}
23... Be5 {[%clk 0:01:17.2]} 24. Rd2 {[%clk 0:01:22.3]} 24... Bc6 {[%clk
0:01:09.4]} 25. Rfd1 {[%clk 0:01:16.4]} 25... d4 {[%clk 0:01:00]} 26. Bxc6
{[%clk 0:01:00.2]} 26... Nxc6 {[%clk 0:01:00]} 27. exd4 {[%clk 0:00:58.5]} 27...
Nxd4 {[%clk 0:01:01.3]} 28. Nxd4 {[%clk 0:00:37]} 28... Bxd4 {[%clk 0:01:03.2]}
29. Nd3 {[%clk 0:00:29.3]} 29... Qf6 {[%clk 0:00:45.4]} 30. Qf4 {[%clk
0:00:28.1]} 30... Qb6 {[%clk 0:00:43.3]} 31. Qf5 {[%clk 0:00:17.1]} 31... g6
{[%clk 0:00:38]} 32. Qf4 {[%clk 0:00:17.5]} 32... Kg7 {[%clk 0:00:37.4]} 33. h4
{[%clk 0:00:17.9]} 33... Bc3 {[%clk 0:00:22.8]} 34. Rc2 {[%clk 0:00:11.5]} 34...
Qxb3 {[%clk 0:00:21.2]} 35. Rdc1 {[%clk 0:00:04.4]} 35... Rxd3 {[%clk
0:00:17.2]} 36. Qc7 {[%clk 0:00:05.4]} 36... Bb4 {[%clk 0:00:14]} 0-1

[Event "*** Titled Tuesday Blitz"]
[Site "Chess.com"]
[Date "2019.05.07"]
[Round "7"]
[White "maxip32"]
[Black "enriquetejedor"]
[Result "1-0"]
[WhiteElo "2436"]
[BlackElo "2538"]
[TimeControl "180+2"]
[EndTime "14:40:33 PDT"]
[Termination "maxip32 won by resignation"]

1. e4 {[%clk 0:03:01.9]} 1... c5 {[%clk 0:02:57.3]} 2. Nf3 {[%clk 0:03:02.5]}
2... e6 {[%clk 0:02:49.4]} 3. d3 {[%clk 0:03:00.9]} 3... g6 {[%clk 0:02:48.7]}
4. g3 {[%clk 0:03:00.6]} 4... Bg7 {[%clk 0:02:49.9]} 5. Bg2 {[%clk 0:03:01.9]}
5... Nc6 {[%clk 0:02:51.2]} 6. O-O {[%clk 0:03:02.6]} 6... Nge7 {[%clk
0:02:52.1]} 7. Re1 {[%clk 0:03:01]} 7... O-O {[%clk 0:02:53.4]} 8. c3 {[%clk
0:02:55.6]} 8... d5 {[%clk 0:02:52.6]} 9. Nbd2 {[%clk 0:02:55.8]} 9... Rb8
{[%clk 0:02:50.6]} 10. e5 {[%clk 0:02:54.7]} 10... b5 {[%clk 0:02:48.9]} 11. d4
{[%clk 0:02:55.7]} 11... cxd4 {[%clk 0:02:48.8]} 12. cxd4 {[%clk 0:02:56.6]}
12... b4 {[%clk 0:02:47.6]} 13. Nb3 {[%clk 0:02:57.1]} 13... a5 {[%clk
0:02:47.4]} 14. Bg5 {[%clk 0:02:56.8]} 14... Ba6 {[%clk 0:02:45.5]} 15. Qd2
{[%clk 0:02:53.4]} 15... Qb6 {[%clk 0:02:45.7]} 16. Rad1 {[%clk 0:02:44]} 16...
Bc4 {[%clk 0:02:45]} 17. Bh6 {[%clk 0:02:43.2]} 17... a4 {[%clk 0:02:42.1]} 18.
Nc5 {[%clk 0:02:42.1]} 18... Bxa2 {[%clk 0:02:42.8]} 19. Nd7 {[%clk 0:02:40.6]}
19... Qc7 {[%clk 0:02:44.1]} 20. Nxf8 {[%clk 0:02:41.6]} 20... Kxf8 {[%clk
0:02:44.4]} 21. Qg5 {[%clk 0:02:38.4]} 21... Ng8 {[%clk 0:02:43.6]} 22. Bxg7+
{[%clk 0:02:39]} 22... Kxg7 {[%clk 0:02:45.5]} 23. Rc1 {[%clk 0:02:39.7]} 23...
Qb6 {[%clk 0:02:43.6]} 24. Qd2 {[%clk 0:02:37.9]} 24... Bc4 {[%clk 0:02:44.6]}
25. Bf1 {[%clk 0:02:37.5]} 25... Na5 {[%clk 0:02:44.7]} 26. Qc2 {[%clk
0:02:24.5]} 26... a3 {[%clk 0:02:41.8]} 27. bxa3 {[%clk 0:02:24.4]} 27... bxa3
{[%clk 0:02:40.1]} 28. Bxc4 {[%clk 0:02:25.3]} 28... Nxc4 {[%clk 0:02:40]} 29.
Rb1 {[%clk 0:02:25.6]} 29... Qa7 {[%clk 0:02:38.6]} 30. Rxb8 {[%clk 0:02:26.1]}
30... Qxb8 {[%clk 0:02:40.5]} 31. Nd2 {[%clk 0:02:22.5]} 31... Qb4 {[%clk
0:02:34.2]} 32. Rd1 {[%clk 0:02:18.4]} 32... Nb2 {[%clk 0:02:33.5]} 33. Ra1
{[%clk 0:02:15.9]} 33... Qxd4 {[%clk 0:02:34]} 34. Rxa3 {[%clk 0:02:15.4]} 34...
Qxe5 {[%clk 0:02:34.3]} 35. Nf3 {[%clk 0:02:05.2]} 35... Qf6 {[%clk 0:02:34.8]}
36. Nd2 {[%clk 0:01:56.9]} 36... Nh6 {[%clk 0:02:28]} 37. Rb3 {[%clk 0:01:51.6]}
37... Ng4 {[%clk 0:02:21.6]} 38. Qxb2 {[%clk 0:01:50.2]} 38... Ne5 {[%clk
0:02:10.3]} 39. Kg2 {[%clk 0:01:45.9]} 39... h5 {[%clk 0:02:10.4]} 40. Re3
{[%clk 0:01:43.1]} 40... Ng4 {[%clk 0:02:07.2]} 41. Qxf6+ {[%clk 0:01:43.2]}
41... Kxf6 {[%clk 0:02:09.1]} 42. Rb3 {[%clk 0:01:43.4]} 42... Ne5 {[%clk
0:02:10]} 43. f4 {[%clk 0:01:42.9]} 43... Nc6 {[%clk 0:02:10.9]} 44. Nf3 {[%clk
0:01:42.3]} 44... Ke7 {[%clk 0:02:08.1]} 45. Rb6 {[%clk 0:01:41]} 45... Nd8
{[%clk 0:02:08.3]} 46. Ra6 {[%clk 0:01:41]} 46... f6 {[%clk 0:02:09]} 47. Kf2
{[%clk 0:01:39.6]} 47... Nf7 {[%clk 0:02:09.4]} 48. Ra7+ {[%clk 0:01:39.1]}
48... Kf8 {[%clk 0:02:10.5]} 49. Nd4 {[%clk 0:01:22.7]} 49... e5 {[%clk
0:02:06.6]} 50. Ne6+ {[%clk 0:01:23.6]} 50... Kg8 {[%clk 0:02:07.1]} 51. fxe5
{[%clk 0:01:23.3]} 51... Nxe5 {[%clk 0:02:06.9]} 52. Ke3 {[%clk 0:01:18.7]}
52... Ng4+ {[%clk 0:02:07.1]} 53. Kd4 {[%clk 0:01:19]} 53... Nxh2 {[%clk
0:02:07.9]} 54. Kxd5 {[%clk 0:01:15.5]} 54... g5 {[%clk 0:02:06]} 55. Rg7+
{[%clk 0:01:06.5]} 55... Kh8 {[%clk 0:02:06.8]} 56. Rf7 {[%clk 0:01:05.4]} 56...
Ng4 {[%clk 0:02:07.1]} 57. Nd4 {[%clk 0:00:54.3]} 57... h4 {[%clk 0:02:07.6]}
58. gxh4 {[%clk 0:00:55.4]} 58... gxh4 {[%clk 0:02:09.5]} 59. Nf3 {[%clk
0:00:56.5]} 59... h3 {[%clk 0:02:10.4]} 60. Ke6 {[%clk 0:00:42.9]} 60... h2
{[%clk 0:02:09.8]} 61. Nxh2 {[%clk 0:00:36.9]} 61... Nxh2 {[%clk 0:02:11.7]} 62.
Kxf6 {[%clk 0:00:28.8]} 62... Ng4+ {[%clk 0:02:12.6]} 63. Kg5 {[%clk 0:00:29.5]}
63... Ne5 {[%clk 0:02:13.3]} 64. Re7 {[%clk 0:00:30.6]} 64... Nc6 {[%clk
0:02:14.4]} 65. Rc7 {[%clk 0:00:30.1]} 65... Nd4 {[%clk 0:02:15.6]} 66. Kg6
{[%clk 0:00:28.3]} 1-0

[Event "*** Titled Tuesday Blitz"]
[Site "Chess.com"]
[Date "2019.05.07"]
[Round "7"]
[White "ShimanovAlex"]
[Black "penguingm1"]
[Result "0-1"]
[WhiteElo "2841"]
[BlackElo "2917"]
[TimeControl "180+2"]
[EndTime "14:40:36 PDT"]
[Termination "penguingm1 won by resignation"]

1. c4 {[%clk 0:03:00.2]} 1... e6 {[%clk 0:03:01]} 2. g3 {[%clk 0:03:01.1]} 2...
d5 {[%clk 0:03:02.5]} 3. Bg2 {[%clk 0:03:03]} 3... Nf6 {[%clk 0:03:03.9]} 4. Nf3
{[%clk 0:03:03.9]} 4... Be7 {[%clk 0:03:04.9]} 5. d4 {[%clk 0:03:04.9]} 5... O-O
{[%clk 0:03:04.8]} 6. Nc3 {[%clk 0:03:06.5]} 6... dxc4 {[%clk 0:02:56.2]} 7. Ne5
{[%clk 0:03:07.4]} 7... Qd6 {[%clk 0:02:57.8]} 8. O-O {[%clk 0:03:04.7]} 8...
Qa6 {[%clk 0:02:53.6]} 9. a4 {[%clk 0:03:05.6]} 9... c6 {[%clk 0:02:42.2]} 10.
b3 {[%clk 0:02:56.5]} 10... cxb3 {[%clk 0:02:23.3]} 11. Qxb3 {[%clk 0:02:58.4]}
11... Nbd7 {[%clk 0:02:23.3]} 12. Bg5 {[%clk 0:02:15.6]} 12... h6 {[%clk
0:02:08.6]} 13. Bxf6 {[%clk 0:02:12.1]} 13... Bxf6 {[%clk 0:02:00.7]} 14. f4
{[%clk 0:02:05]} 14... Qb6 {[%clk 0:01:57.1]} 15. Qxb6 {[%clk 0:02:05]} 15...
axb6 {[%clk 0:01:46.2]} 16. Rfb1 {[%clk 0:02:05.8]} 16... Nxe5 {[%clk
0:01:37.1]} 17. fxe5 {[%clk 0:02:05.1]} 17... Bd8 {[%clk 0:01:38.1]} 18. e3
{[%clk 0:02:02.6]} 18... Bc7 {[%clk 0:01:38.3]} 19. Ne4 {[%clk 0:01:59.9]} 19...
Rd8 {[%clk 0:01:32.9]} 20. Ra2 {[%clk 0:01:19.3]} 20... Kf8 {[%clk 0:01:16]} 21.
Rbb2 {[%clk 0:01:08.6]} 21... Ke7 {[%clk 0:01:16.1]} 22. Nd2 {[%clk 0:01:09.7]}
22... Bd7 {[%clk 0:01:11.6]} 23. Nc4 {[%clk 0:01:09.8]} 23... Ra6 {[%clk
0:01:06.5]} 24. Bf1 {[%clk 0:01:01.2]} 24... Rda8 {[%clk 0:01:02.9]} 25. Nd6
{[%clk 0:00:35.9]} 25... Rxa4 {[%clk 0:01:01.3]} 26. Rxa4 {[%clk 0:00:37.2]}
26... Rxa4 {[%clk 0:01:03.2]} 27. Nxb7 {[%clk 0:00:38.2]} 27... f6 {[%clk
0:00:57.1]} 28. Nd6 {[%clk 0:00:31.1]} 28... fxe5 {[%clk 0:00:57.6]} 29. dxe5
{[%clk 0:00:29.5]} 29... b5 {[%clk 0:00:58.8]} 30. Rd2 {[%clk 0:00:29]} 30...
Bb6 {[%clk 0:00:56.7]} 31. Kf2 {[%clk 0:00:29.7]} 31... Ra3 {[%clk 0:00:52.4]}
32. Bd3 {[%clk 0:00:30.1]} 32... Ba5 {[%clk 0:00:46.8]} 33. Rd1 {[%clk
0:00:30.4]} 33... Bc3 {[%clk 0:00:48]} 34. Nb7 {[%clk 0:00:18.2]} 34... Bxe5
{[%clk 0:00:44.1]} 35. Nc5 {[%clk 0:00:19.4]} 35... Be8 {[%clk 0:00:43.4]} 36.
Bf1 {[%clk 0:00:19.3]} 36... Ra2+ {[%clk 0:00:43]} 37. Kf3 {[%clk 0:00:19.7]}
37... Rxh2 {[%clk 0:00:36.4]} 38. Rd3 {[%clk 0:00:18.2]} 38... Ra2 {[%clk
0:00:34.9]} 39. Bh3 {[%clk 0:00:15.7]} 39... Bh5+ {[%clk 0:00:30.9]} 40. Ke4
{[%clk 0:00:15.8]} 40... Bd6 {[%clk 0:00:29.7]} 41. Nxe6 {[%clk 0:00:14.6]}
41... Bg6+ {[%clk 0:00:30.7]} 42. Bf5 {[%clk 0:00:16.1]} 42... Bxf5+ {[%clk
0:00:31.9]} 43. Kxf5 {[%clk 0:00:18]} 43... g6+ {[%clk 0:00:31]} 0-1

[Event "*** Titled Tuesday Blitz"]
[Site "Chess.com"]
[Date "2019.05.07"]
[Round "7"]
[White "Vamostodorecto"]
[Black "volcanoexplorer"]
[Result "0-1"]
[WhiteElo "2401"]
[BlackElo "2594"]
[TimeControl "180+2"]
[EndTime "14:40:38 PDT"]
[Termination "volcanoexplorer won on time"]

1. d4 {[%clk 0:03:01.9]} 1... Nf6 {[%clk 0:03:00.8]} 2. c4 {[%clk 0:03:00.7]}
2... e6 {[%clk 0:03:02.4]} 3. Nc3 {[%clk 0:03:01.1]} 3... Bb4 {[%clk 0:03:03.3]}
4. a3 {[%clk 0:03:00.6]} 4... Bxc3+ {[%clk 0:03:04]} 5. bxc3 {[%clk 0:03:02.5]}
5... d5 {[%clk 0:03:05.6]} 6. cxd5 {[%clk 0:03:02.2]} 6... exd5 {[%clk
0:03:06.4]} 7. f3 {[%clk 0:03:03.7]} 7... O-O {[%clk 0:03:06.9]} 8. e3 {[%clk
0:03:05.3]} 8... c5 {[%clk 0:03:07.3]} 9. Bd3 {[%clk 0:03:06.8]} 9... Nbd7
{[%clk 0:03:00.9]} 10. Ne2 {[%clk 0:03:08.2]} 10... Rb8 {[%clk 0:02:59.7]} 11.
O-O {[%clk 0:03:08.1]} 11... Re8 {[%clk 0:02:59.8]} 12. Ng3 {[%clk 0:03:08.8]}
12... b5 {[%clk 0:03:00.5]} 13. Ra2 {[%clk 0:03:09.3]} 13... a5 {[%clk 0:02:57]}
14. Re2 {[%clk 0:03:08.2]} 14... b4 {[%clk 0:02:41.6]} 15. axb4 {[%clk
0:03:10.1]} 15... axb4 {[%clk 0:02:37.9]} 16. Bb2 {[%clk 0:03:04.4]} 16... c4
{[%clk 0:02:10.8]} 17. Bb1 {[%clk 0:03:01.8]} 17... bxc3 {[%clk 0:02:05.9]} 18.
Bxc3 {[%clk 0:03:03.7]} 18... Rb3 {[%clk 0:02:07.2]} 19. Qc2 {[%clk 0:02:55.5]}
19... Nb6 {[%clk 0:02:03.8]} 20. e4 {[%clk 0:02:47.4]} 20... Na4 {[%clk
0:02:00.1]} 21. Ba1 {[%clk 0:02:44.5]} 21... dxe4 {[%clk 0:01:46.3]} 22. fxe4
{[%clk 0:02:38.8]} 22... Bg4 {[%clk 0:01:46.9]} 23. Ref2 {[%clk 0:02:30.8]}
23... Ra3 {[%clk 0:01:26.9]} 24. Ba2 {[%clk 0:01:38.7]} 24... Re7 {[%clk
0:01:00.2]} 25. d5 {[%clk 0:01:36.3]} 25... c3 {[%clk 0:00:53.7]} 26. h3 {[%clk
0:01:19.5]} 26... Bc8 {[%clk 0:00:51]} 27. Rxf6 {[%clk 0:01:19.2]} 27... gxf6
{[%clk 0:00:49.3]} 28. Nh5 {[%clk 0:01:20.9]} 28... f5 {[%clk 0:00:34.9]} 29.
Qc1 {[%clk 0:00:59.6]} 29... Qb6+ {[%clk 0:00:22.9]} 30. Kh1 {[%clk 0:00:49.3]}
30... Rxa2 {[%clk 0:00:23.1]} 31. exf5 {[%clk 0:00:18.7]} 31... Qe3 {[%clk
0:00:23.7]} 32. Qd1 {[%clk 0:00:15.4]} 32... Qe2 {[%clk 0:00:24]} 33. Qxe2
{[%clk 0:00:07.2]} 33... Rexe2 {[%clk 0:00:25.9]} 34. Nf4 {[%clk 0:00:07.4]}
34... Rf2 {[%clk 0:00:22.8]} 35. Rxf2 {[%clk 0:00:02.3]} 35... Rxf2 {[%clk
0:00:22.7]} 0-1

[Event "*** Titled Tuesday Blitz"]
[Site "Chess.com"]
[Date "2019.05.07"]
[Round "7"]
[White "kintoho"]
[Black "TargetA"]
[Result "1-0"]
[WhiteElo "2560"]
[BlackElo "2440"]
[TimeControl "180+2"]
[EndTime "14:40:39 PDT"]
[Termination "kintoho won by resignation"]

1. e4 {[%clk 0:02:27.2]} 1... e5 {[%clk 0:02:57.4]} 2. Nf3 {[%clk 0:02:27.7]}
2... Nc6 {[%clk 0:02:52.5]} 3. d4 {[%clk 0:02:28.5]} 3... exd4 {[%clk
0:02:52.6]} 4. c3 {[%clk 0:02:29.9]} 4... dxc3 {[%clk 0:02:46.6]} 5. Nxc3 {[%clk
0:02:30.4]} 5... Bb4 {[%clk 0:02:39.7]} 6. Bc4 {[%clk 0:02:30.5]} 6... Nge7
{[%clk 0:02:30.9]} 7. Ng5 {[%clk 0:02:21.2]} 7... Bxc3+ {[%clk 0:02:10.5]} 8.
bxc3 {[%clk 0:02:19]} 8... Ne5 {[%clk 0:02:11.5]} 9. Bb3 {[%clk 0:02:18.9]} 9...
h6 {[%clk 0:02:10.2]} 10. Nf3 {[%clk 0:02:18.6]} 10... Nxf3+ {[%clk 0:02:07.2]}
11. Qxf3 {[%clk 0:02:19.7]} 11... O-O {[%clk 0:02:07.9]} 12. O-O {[%clk
0:02:17.6]} 12... d6 {[%clk 0:02:08]} 13. Rd1 {[%clk 0:02:16.3]} 13... Be6
{[%clk 0:02:04.2]} 14. e5 {[%clk 0:02:09.4]} 14... d5 {[%clk 0:01:51.3]} 15. c4
{[%clk 0:02:06.6]} 15... c6 {[%clk 0:01:38]} 16. Ba3 {[%clk 0:02:07.5]} 16...
Re8 {[%clk 0:01:38.6]} 17. h3 {[%clk 0:02:05.5]} 17... Qa5 {[%clk 0:01:21.8]}
18. Bxe7 {[%clk 0:01:49.4]} 18... dxc4 {[%clk 0:01:13.6]} 19. Bd6 {[%clk
0:01:35]} 19... cxb3 {[%clk 0:01:06.5]} 20. axb3 {[%clk 0:01:36.2]} 20... Qb5
{[%clk 0:01:06.2]} 21. Rd3 {[%clk 0:01:34.2]} 21... a5 {[%clk 0:00:57.8]} 22.
Re1 {[%clk 0:01:33.4]} 22... a4 {[%clk 0:00:56.2]} 23. bxa4 {[%clk 0:01:33.5]}
23... Rxa4 {[%clk 0:00:58.1]} 24. Kh2 {[%clk 0:01:29.4]} 24... Ra2 {[%clk
0:00:48.3]} 25. Rde3 {[%clk 0:01:20.2]} 25... Qd5 {[%clk 0:00:35.3]} 26. Qf4
{[%clk 0:01:17]} 26... Qd2 {[%clk 0:00:21.1]} 27. Rf1 {[%clk 0:01:14.3]} 27...
b5 {[%clk 0:00:19.5]} 28. Bb4 {[%clk 0:01:07.1]} 28... Qb2 {[%clk 0:00:17.7]}
29. Bc3 {[%clk 0:01:05.8]} 29... Qc2 {[%clk 0:00:18]} 30. Rg3 {[%clk 0:01:04.3]}
30... Kh7 {[%clk 0:00:15.1]} 31. Bd4 {[%clk 0:01:03]} 31... c5 {[%clk
0:00:13.5]} 32. Be3 {[%clk 0:01:04.1]} 32... Qf5 {[%clk 0:00:12.2]} 33. Qxf5+
{[%clk 0:01:01.2]} 33... Bxf5 {[%clk 0:00:14.1]} 34. Bxc5 {[%clk 0:01:02]} 34...
Rxe5 {[%clk 0:00:15.7]} 35. Bd4 {[%clk 0:01:03.4]} 35... f6 {[%clk 0:00:13.5]}
36. Bxe5 {[%clk 0:01:03.6]} 36... fxe5 {[%clk 0:00:15.4]} 37. Rb3 {[%clk
0:01:03]} 37... Be6 {[%clk 0:00:15.2]} 38. Re3 {[%clk 0:00:59.7]} 38... Bc4
{[%clk 0:00:15.3]} 39. Rd1 {[%clk 0:00:56.8]} 39... Rxf2 {[%clk 0:00:16.5]} 40.
Rxe5 {[%clk 0:00:58.1]} 40... b4 {[%clk 0:00:16.3]} 41. Rd4 {[%clk 0:00:58.3]}
41... Rc2 {[%clk 0:00:13.1]} 42. Rc5 {[%clk 0:00:55.4]} 42... b3 {[%clk
0:00:11.1]} 43. Rcxc4 {[%clk 0:00:54.7]} 43... b2 {[%clk 0:00:11.4]} 44. Rb4
{[%clk 0:00:55.9]} 44... Rc1 {[%clk 0:00:11.8]} 45. Rxb2 {[%clk 0:00:56.4]} 1-0

[Event "*** Titled Tuesday Blitz"]
[Site "Chess.com"]
[Date "2019.05.07"]
[Round "7"]
[White "AlexandraBotez"]
[Black "GMKrikor"]
[Result "0-1"]
[WhiteElo "2000"]
[BlackElo "2737"]
[TimeControl "180+2"]
[EndTime "14:40:43 PDT"]
[Termination "GMKrikor won by resignation"]

1. d4 {[%clk 0:03:01.9]} 1... Nf6 {[%clk 0:02:59.8]} 2. c4 {[%clk 0:03:00.5]}
2... e6 {[%clk 0:02:59.7]} 3. Nf3 {[%clk 0:03:00.4]} 3... b6 {[%clk 0:02:52.4]}
4. g3 {[%clk 0:02:58.9]} 4... Ba6 {[%clk 0:02:51]} 5. Qc2 {[%clk 0:02:47.9]}
5... Bb7 {[%clk 0:02:46.3]} 6. Bg2 {[%clk 0:02:48.5]} 6... c5 {[%clk 0:02:47]}
7. e3 {[%clk 0:02:42.8]} 7... cxd4 {[%clk 0:02:38.8]} 8. exd4 {[%clk 0:02:43]}
8... Be7 {[%clk 0:02:26.3]} 9. Nc3 {[%clk 0:02:42.9]} 9... O-O {[%clk
0:02:26.5]} 10. O-O {[%clk 0:02:44.1]} 10... d5 {[%clk 0:02:27.5]} 11. cxd5
{[%clk 0:02:42.5]} 11... Nxd5 {[%clk 0:02:27.3]} 12. Nxd5 {[%clk 0:02:42.3]}
12... Bxd5 {[%clk 0:02:29.2]} 13. Bf4 {[%clk 0:02:41.1]} 13... Nc6 {[%clk
0:02:24.7]} 14. a3 {[%clk 0:02:39.2]} 14... Bxf3 {[%clk 0:02:14.1]} 15. Bxf3
{[%clk 0:02:35.5]} 15... Nxd4 {[%clk 0:02:15.5]} 16. Qe4 {[%clk 0:02:34.1]}
16... Nxf3+ {[%clk 0:02:05.2]} 17. Qxf3 {[%clk 0:02:34.4]} 17... Qd5 {[%clk
0:01:53.2]} 18. Qe2 {[%clk 0:02:31.2]} 18... Bf6 {[%clk 0:01:42.7]} 19. Rac1
{[%clk 0:02:18.8]} 19... Rac8 {[%clk 0:01:29.5]} 20. Rfd1 {[%clk 0:02:12.9]}
20... Qb3 {[%clk 0:01:27]} 21. Be5 {[%clk 0:02:09.6]} 21... Bxe5 {[%clk
0:01:19.5]} 22. Qxe5 {[%clk 0:02:10.2]} 22... h6 {[%clk 0:01:07.4]} 23. h4
{[%clk 0:01:54.6]} 23... Qf3 {[%clk 0:00:47.8]} 24. Qd4 {[%clk 0:01:46.8]} 24...
h5 {[%clk 0:00:37.6]} 25. Rxc8 {[%clk 0:01:25.6]} 25... Rxc8 {[%clk 0:00:38]}
26. Qd3 {[%clk 0:01:26.9]} 26... Qxd3 {[%clk 0:00:30.4]} 27. Rxd3 {[%clk
0:01:27.8]} 27... Rc2 {[%clk 0:00:30.4]} 28. b3 {[%clk 0:01:28.3]} 28... Rb2
{[%clk 0:00:18.2]} 29. a4 {[%clk 0:01:28.8]} 29... a5 {[%clk 0:00:18.6]} 30. Kg2
{[%clk 0:01:29.4]} 30... g6 {[%clk 0:00:19.2]} 31. Kf3 {[%clk 0:01:30]} 31...
Kg7 {[%clk 0:00:20.7]} 32. Ke3 {[%clk 0:01:27.3]} 32... Kf6 {[%clk 0:00:21.7]}
33. Rc3 {[%clk 0:01:25]} 33... Ke5 {[%clk 0:00:21.5]} 34. Rd3 {[%clk 0:01:23.1]}
34... f6 {[%clk 0:00:22.7]} 35. Rc3 {[%clk 0:01:24.1]} 35... g5 {[%clk
0:00:20.4]} 36. Kf3 {[%clk 0:01:00.1]} 36... gxh4 {[%clk 0:00:12.1]} 37. gxh4
{[%clk 0:01:01]} 37... Kd4 {[%clk 0:00:13]} 38. Re3 {[%clk 0:01:00.7]} 38... e5
{[%clk 0:00:14.4]} 39. Kg3 {[%clk 0:00:59.2]} 39... f5 {[%clk 0:00:12.3]} 40.
Kf3 {[%clk 0:00:44.6]} 40... f4 {[%clk 0:00:13.2]} 41. Re4+ {[%clk 0:00:40.5]}
41... Kd5 {[%clk 0:00:11.3]} 42. Re2 {[%clk 0:00:36.1]} 42... Rxb3+ {[%clk
0:00:07.7]} 43. Kg2 {[%clk 0:00:37.1]} 43... f3+ {[%clk 0:00:09]} 0-1